bitfinex/quotes_ETHUSD_20220310
["timestamp","ask_amount","ask_price","bid_price","bid_amount"]
[1646929217726,0.03212953,2604.2,2603.9,0.99801386]
[1646929218629,0.03212953,2604.2,2603.9,1.95870386]
[1646929218830,1.06687561,2604.2,2603.9,1.95870386]
[1646929219030,1.06687561,2604.2,2603.9,1.921365]
[1646929219031,0.03212953,2604.2,2603.9,1.921365]
[1646929219231,0.03212953,2604.2,2603.9,0.960675]
[1646929220233,0.99288953,2604.2,2603.9,0.960675]
[1646929220432,0.03212953,2604.2,2603.9,1.921385]
[1646929223189,0.03212953,2604.2,2603.9,2.00762188]
[1646929224087,0.03212953,2604.2,2604.0,0.07640094]
[1646929224933,0.03212953,2604.2,2603.9,1.921385]
[1646929224934,0.03212953,2604.2,2603.9,2.074954]
[1646929225330,0.99287953,2604.2,2603.9,1.921385]
[1646929225934,0.95874955,2604.0,2603.9,1.921385]
[1646929226134,0.03212953,2604.2,2603.9,1.921385]
[1646929226733,0.99287953,2604.2,2603.9,1.921385]
[1646929227331,1.11811005,2604.0,2603.9,1.921385]
[1646929227533,1.11811005,2604.0,2603.9,0.960675]
[1646929227731,0.99287953,2604.2,2603.9,0.960675]
[1646929227732,0.03212953,2604.2,2603.9,0.960675]
[1646929227933,0.03212953,2604.2,2604.0,3.57503947]
[1646929228132,0.03212953,2604.2,2604.0,2.95658857]
[1646929228983,0.03212953,2604.2,2604.0,2.8815491]
[1646929229184,0.03212953,2604.2,2604.1,0.08208479]
[1646929230790,0.03212953,2604.2,2604.1,5.55177936]
[1646929231094,0.01424064,2604.7,2604.4,2.1703092]
[1646929231095,0.01291701,2604.7,2604.4,2.1703092]
[1646929231288,0.94541845,2605.1,2604.4,2.1703092]
[1646929231289,0.94541845,2605.2,2604.6,0.96016]
[1646929231488,0.94541845,2605.2,2604.7,3.58053555]
[1646929231693,8.88513812,2605.7,2604.8,0.07313749]
[1646929231694,0.94541845,2605.3,2604.8,0.07313749]
[1646929231890,0.94541845,2605.3,2604.6,0.07200715]
[1646929232327,2.05238924,2605.4,2604.6,0.07200715]
[1646929232527,2.05238924,2605.4,2604.6,3.95610715]
[1646929232528,0.94541845,2605.3,2604.6,3.95610715]
[1646929232728,0.94541845,2605.3,2604.7,0.08326165]
[1646929233127,0.94541845,2605.3,2605.0,1.210187]
[1646929233332,0.94541845,2605.3,2605.1,0.96019]
[1646929233533,2.05238924,2605.4,2605.1,0.96019]
[1646929233933,0.94541845,2605.4,2605.1,0.96019]
[1646929234134,1.94541845,2605.6,2605.1,6.38057]
[1646929234335,1.94541845,2605.6,2605.2,1.04607349]
[1646929234336,1.0,2605.6,2605.2,1.04607349]
[1646929234534,1.0,2605.6,2605.3,3.58286503]
[1646929234738,0.94541845,2606.0,2605.4,0.07238057]
[1646929234937,0.00097822,2606.1,2605.5,0.25]
[1646929234938,0.01439236,2605.8,2605.5,0.25]
[1646929235137,0.01439236,2605.8,2605.6,0.95975]
[1646929235336,0.01439236,2605.8,2605.7,0.07332316]
[1646929235979,0.01678094,2605.8,2605.7,0.07332316]
[1646929236180,0.00238858,2605.8,2605.7,0.07332316]
[1646929236387,0.00238858,2605.8,2605.6,5.7585148]
[1646929236782,1.16282424,2606.0,2605.6,2.8792448]
[1646929237181,0.00359538,2605.8,2605.6,2.8792448]
[1646929237582,0.00359538,2605.8,2605.6,3.8392748]
[1646929238085,0.00359538,2605.8,2605.5,2.16998]
[1646929238489,1.13521617,2605.6,2605.5,0.25]
[1646929239490,2.08063462,2605.6,2605.5,0.25]
[1646929240834,0.9602,2605.7,2605.5,0.25]
[1646929240835,0.9487036,2605.7,2605.5,0.25]
[1646929241836,1.90561845,2605.7,2605.5,0.25]
[1646929242135,3.44721913,2605.7,2605.5,0.25]
[1646929242333,2.48701913,2605.7,2605.5,0.25]
[1646929242535,2.10291913,2605.7,2605.5,0.25]
[1646929242733,2.48701913,2605.7,2605.5,0.25]
[1646929242934,2.48373401,2605.7,2605.5,0.25]
[1646929243133,2.09963401,2605.7,2605.5,0.25]
[1646929243378,2.10323292,2605.7,2605.5,0.25]
[1646929244183,2.09963401,2605.7,2605.5,0.25]
[1646929244385,0.94541845,2605.6,2605.5,0.13816391]
[1646929244784,2.5021215,2605.7,2605.5,0.13816391]
[1646929244985,0.94267231,2605.6,2605.5,0.13816391]
[1646929245187,2.5021215,2605.7,2605.5,0.13816391]
[1646929245388,2.49851556,2605.7,2605.5,0.13816391]
[1646929245589,2.5021215,2605.7,2605.5,0.13816391]
[1646929246185,0.9427038,2605.6,2605.5,0.13816391]
[1646929246387,2.5021215,2605.7,2605.5,0.13816391]
[1646929246589,0.94275731,2605.6,2605.5,0.13816391]
[1646929246787,2.5021215,2605.7,2605.5,0.13816391]
[1646929247832,2.49851556,2605.7,2605.5,0.13816391]
[1646929248031,3.44489368,2605.7,2605.5,0.13816391]
[1646929248235,3.06079368,2605.7,2605.5,0.13816391]
[1646929248636,2.50210988,2605.7,2605.5,0.13816391]
[1646929249040,2.11441556,2605.7,2605.5,0.13816391]
[1646929249241,2.11800988,2605.7,2605.5,0.13816391]
[1646929250239,2.11441556,2605.7,2605.5,0.13816391]
[1646929250440,2.11800988,2605.7,2605.5,0.13816391]
[1646929250879,3.06079368,2605.7,2605.5,0.13816391]
[1646929251481,3.05719936,2605.7,2605.5,0.13816391]
[1646929251683,2.11801158,2605.7,2605.5,0.13816391]
[1646929252081,2.11801158,2605.7,2605.3,0.960197]
[1646929252282,2.11801158,2605.7,2605.3,1.210197]
[1646929252482,2.11441556,2605.7,2605.3,0.25]
[1646929252882,0.00359607,2605.6,2605.3,0.25]
[1646929253082,0.9603,2605.5,2605.3,0.25]
[1646929253283,0.05656908,2605.4,2605.3,0.25]
[1646929253685,0.05656908,2605.4,2604.8,1.92073]
[1646929253686,0.3841,2605.3,2604.8,1.92073]
[1646929253888,1.01871189,2604.9,2604.8,1.92073]
[1646929254494,1.07347652,2604.9,2604.5,0.25]
[1646929254738,0.05310565,2604.8,2604.5,0.25]
[1646929255332,0.05637671,2604.8,2604.5,0.25]
[1646929255533,0.05668137,2604.7,2604.5,0.25]
[1646929257138,0.00327098,2604.8,2604.5,0.25]
[1646929257335,0.0572106,2605.0,2604.5,0.25]
[1646929257737,0.00327098,2604.8,2604.5,0.25]
[1646929258137,1.20309398,2604.6,2604.5,0.25]
[1646929263945,0.00329964,2604.8,2604.5,0.25]
[1646929265045,0.00329972,2604.8,2604.6,0.96042]
[1646929265744,1.17804724,2604.9,2604.6,0.96042]
[1646929266202,0.00330036,2604.8,2604.6,0.96042]
[1646929267001,1.17804724,2604.9,2604.6,0.96042]
[1646929267402,0.00330036,2604.8,2604.6,0.96042]
[1646929268205,1.17804724,2604.9,2604.6,0.95924136]
[1646929268407,2.12083104,2604.9,2604.6,0.95924136]
[1646929268606,0.00330036,2604.8,2604.6,0.95924136]
[1646929269406,2.1750366,2604.9,2604.6,0.95924136]
[1646929269642,0.00360522,2604.8,2604.6,0.95924136]
[1646929270237,0.96415522,2604.8,2604.6,0.95924136]
[1646929270634,1.9033338,2604.8,2604.6,0.95924136]
[1646929271032,1.90693902,2604.8,2604.6,0.95924136]
[1646929271234,0.96415522,2604.8,2604.6,0.95924136]
[1646929271834,0.96055,2604.8,2604.6,0.95924136]
[1646929272034,0.96415522,2604.8,2604.6,0.95924136]
[1646929273037,0.96055,2604.8,2604.6,0.95924136]
[1646929273488,0.96402688,2604.8,2604.6,0.95924136]
[1646929274186,0.96402688,2604.8,2604.5,0.25]
[1646929274787,0.96750376,2604.8,2604.5,0.25]
[1646929274987,0.96402688,2604.8,2604.5,0.25]
[1646929275988,0.75945633,2604.8,2604.5,0.25]
[1646929276387,0.75945633,2604.8,2604.6,0.96054]
[1646929276587,0.00347684,2604.8,2604.6,0.96054]
[1646929277336,0.00676008,2604.8,2604.6,0.96054]
[1646929277538,0.00328324,2604.8,2604.6,0.96054]
[1646929278541,0.00656652,2604.8,2604.6,0.96054]
[1646929278742,0.00328328,2604.8,2604.6,0.96054]
[1646929279742,0.00656656,2604.8,2604.6,0.96054]
[1646929279941,0.00328328,2604.8,2604.6,0.96054]
[1646929280741,0.00659797,2604.8,2604.6,0.96054]
[1646929280985,0.00331469,2604.8,2604.6,0.96054]
[1646929281985,0.00662938,2604.8,2604.6,0.96054]
[1646929282184,0.00331469,2604.8,2604.6,0.96054]
[1646929282485,0.00331469,2604.8,2604.7,3.5]
[1646929282687,0.00331469,2604.8,2604.7,5.45512423]
[1646929282886,0.95603926,2605.5,2604.9,0.3841]
[1646929282887,0.01325546,2605.5,2604.9,0.3841]
[1646929283091,0.9427838,2605.8,2605.2,0.07357928]
[1646929283286,0.9427838,2605.9,2605.3,0.4666734]
[1646929283492,2.139191,2606.0,2605.3,0.4666734]
[1646929283693,1.1964072,2606.0,2605.3,0.4666734]
[1646929284093,0.9427838,2606.1,2605.4,4.84397]
[1646929284297,0.9427838,2606.3,2605.6,0.3841]
[1646929284495,0.9427838,2606.3,2605.7,0.32131011]
[1646929284936,0.9427838,2606.3,2605.7,3.82131011]
[1646929285138,2.01764081,2606.3,2605.8,0.08590224]
[1646929285337,1.07485701,2606.3,2605.9,0.95976]
[1646929285639,1.07485701,2606.3,2606.0,0.06924565]
[1646929286037,1.06650261,2606.3,2606.0,0.06924565]
[1646929286839,1.06650261,2606.3,2606.1,1.9195798]
[1646929287041,0.9427838,2606.2,2606.0,0.95977]
[1646929287638,0.9427838,2606.1,2605.9,0.95976]
[1646929288040,0.9427838,2606.1,2605.9,1.9197861]
[1646929288491,0.9437672,2606.0,2605.9,0.95976]
[1646929289492,0.99182367,2606.1,2605.9,0.95976]
[1646929289691,0.99568411,2606.1,2605.9,0.95976]
[1646929289891,0.99568411,2606.1,2605.9,1.9197917]
[1646929290093,0.04774095,2606.0,2605.9,1.9197917]
[1646929290292,0.04774095,2606.0,2605.9,1.89752035]
[1646929291291,0.94762761,2606.1,2605.9,1.89752035]
[1646929291493,0.00386041,2606.1,2605.9,1.89752035]
[1646929291891,0.00772085,2606.1,2605.9,1.89752035]
[1646929292147,0.00386044,2606.1,2605.9,1.89752035]
[1646929292337,0.05647052,2606.0,2605.9,1.89752035]
[1646929292536,0.00386044,2606.1,2605.9,1.89752035]
[1646929292737,0.9437672,2606.2,2605.9,1.89752035]
[1646929293137,0.00356038,2606.1,2605.9,1.89752035]
[1646929293941,0.92687997,2606.2,2605.9,1.89752035]
[1646929294141,1.12336212,2606.3,2605.9,1.89752035]
[1646929294344,1.12336212,2606.3,2606.0,1.9197675]
[1646929294345,0.00326283,2606.1,2606.0,1.9197675]
[1646929295245,0.05223286,2606.5,2606.0,2.8796075]
[1646929295648,1.10039134,2606.3,2606.1,0.95984]
[1646929295891,1.10039134,2606.3,2606.1,1.9197583]
[1646929296691,0.05119088,2606.2,2606.1,0.95984]
[1646929297990,0.05119088,2606.2,2606.1,0.51906383]
[1646929298598,0.05119088,2606.2,2606.0,2.81867208]
[1646929298801,3.89629087,2606.2,2606.0,0.89890458]
[1646929298997,1.0488578,2606.1,2606.0,0.89890458]
[1646929299198,0.05486652,2606.0,2605.9,0.93748865]
[1646929299398,0.51586652,2606.0,2605.9,0.93748865]
[1646929299655,0.461,2606.0,2605.9,0.93748865]
[1646929302047,0.411,2606.0,2605.9,0.93748865]
[1646929304195,1.82912767,2606.0,2605.9,0.93748865]
[1646929305696,1.82912767,2606.0,2605.9,0.89169439]
[1646929306597,1.82912767,2606.0,2605.9,0.77634751]
[1646929306997,0.411,2606.0,2605.9,0.77634751]
[1646929307439,0.411,2606.0,2605.9,0.76998585]
[1646929307841,3.41099999,2606.0,2605.9,0.19998585]
[1646929308044,3.41099999,2606.0,2605.5,4.6e-07]
[1646929308045,60.8841,2605.8,2605.5,4.6e-07]
[1646929308243,3.94282369,2605.6,2605.5,4.6e-07]
[1646929308445,4.40382369,2605.6,2605.5,4.6e-07]
[1646929308649,1.4038237,2605.6,2605.5,4.6e-07]
[1646929308845,1.4038237,2605.6,2605.0,2.17072]
[1646929308846,0.3841,2605.5,2605.0,2.17072]
[1646929309048,0.90964805,2605.2,2605.1,0.96042]
[1646929309247,0.9604,2605.3,2605.1,0.96042]
[1646929309446,0.9604,2605.3,2605.1,1.92077]
[1646929310746,0.9604,2605.3,2605.1,2.8810799]
[1646929310998,0.9604,2605.3,2605.1,2.88493763]
[1646929312798,0.9604,2605.3,2605.1,1.92462773]
[1646929313400,0.9604,2605.3,2605.1,1.92077]
[1646929313608,1.0,2605.7,2605.2,5.42041]
[1646929313909,0.00385657,2605.8,2605.4,0.96012]
[1646929314504,0.99412388,2606.0,2605.4,0.96012]
[1646929314743,0.90241616,2605.6,2605.4,0.96397764]
[1646929315645,0.90241616,2605.6,2605.4,0.96012]
[1646929316044,0.90241616,2605.6,2605.5,1.92034]
[1646929316445,0.00342809,2605.8,2605.5,1.92034]
[1646929316649,0.96356809,2605.8,2605.5,1.92034]
[1646929316844,0.96014,2605.8,2605.5,1.92034]
[1646929317044,0.96014,2605.8,2605.5,3.13046]
[1646929317245,0.96356821,2605.8,2605.5,3.13046]
[1646929317445,2.18927074,2605.8,2605.5,3.13046]
[1646929318048,2.18927074,2605.8,2605.6,0.96012]
[1646929318245,2.18584253,2605.8,2605.6,0.96012]
[1646929318495,2.18927074,2605.8,2605.6,0.96012]
[1646929319296,2.18584253,2605.8,2605.6,0.96012]
[1646929319495,0.96014,2605.8,2605.6,0.96012]
[1646929319697,0.00330401,2605.8,2605.6,0.96012]
[1646929320597,1.17230995,2605.9,2605.6,0.96012]
[1646929320796,0.00330401,2605.8,2605.6,0.96012]
[1646929321601,0.00330401,2605.8,2605.5,2.17034]
[1646929321602,0.9428237,2605.7,2605.5,2.17034]
[1646929322247,0.05367391,2605.6,2605.5,2.17034]
[1646929322449,0.99649761,2605.6,2605.5,2.17034]
[1646929322645,0.9428237,2605.6,2605.5,2.17034]
[1646929324252,0.9604,2605.7,2605.5,0.25]
[1646929324455,0.9604,2605.7,2605.6,0.00087312]
[1646929324852,1.9604,2605.7,2605.6,0.00087312]
[1646929325654,3.37463555,2605.7,2605.6,0.00087312]
[1646929325892,3.37463555,2605.7,2605.6,7.312e-05]
[1646929326095,0.0008,2605.5,2605.4,0.25001197]
[1646929326293,47.3841,2605.4,2604.8,0.00688206]
[1646929326494,0.94671983,2605.1,2604.8,0.00688206]
[1646929326694,2.56226507,2605.0,2604.8,0.00688206]
[1646929327293,0.94671983,2604.9,2604.8,0.00688206]
[1646929327694,1.94671983,2604.9,2604.8,0.00688206]
[1646929328094,0.94671983,2604.9,2604.8,0.00688206]
[1646929328294,3.52297507,2605.0,2604.8,0.00688206]
[1646929328700,1.0,2604.9,2604.8,0.00688206]
[1646929328900,2.11525524,2605.0,2604.8,0.00688206]
[1646929330338,2.11525524,2605.0,2604.8,0.01073683]
[1646929330740,2.11525524,2605.0,2604.8,0.09387172]
[1646929330741,1.15454524,2605.0,2604.8,0.09387172]
[1646929330939,2.86748983,2605.4,2604.8,0.09387172]
[1646929331142,2.86748983,2605.4,2604.8,1.05418172]
[1646929331468,2.86748983,2605.4,2604.8,1.05032695]
[1646929331641,2.86748983,2605.4,2604.8,1.05418172]
[1646929332244,1.12776134,2605.1,2604.8,2.01448442]
[1646929332641,1.12776134,2605.1,2604.8,2.01062965]
[1646929332841,1.12776134,2605.1,2605.0,0.00385465]
[1646929333898,1.12776134,2605.1,2604.8,1.05032695]
[1646929334097,1.12776134,2605.1,2604.9,0.00385468]
[1646929334496,2.08815134,2605.1,2604.9,0.00385468]
[1646929335098,2.08815134,2605.1,2604.8,1.05032695]
[1646929335298,2.08815134,2605.1,2604.9,0.0034142]
[1646929336099,2.08815134,2605.1,2604.8,1.05032695]
[1646929336499,2.08815134,2605.1,2604.9,0.0034142]
[1646929337346,2.08815134,2605.1,2604.8,1.05032695]
[1646929337550,2.08815134,2605.1,2604.8,0.96719206]
[1646929337748,2.08815134,2605.1,2604.9,0.0034142]
[1646929338647,2.08815134,2605.1,2604.8,0.96719206]
[1646929338847,2.08815134,2605.1,2604.9,0.00385471]
[1646929339048,3.03487117,2605.1,2604.9,0.00385471]
[1646929339850,3.03487117,2605.1,2604.8,0.96719206]
[1646929339851,2.08815134,2605.1,2604.8,0.96719206]
[1646929340054,2.08815134,2605.1,2604.9,0.00385471]
[1646929340453,1.12776134,2605.1,2604.9,0.00385471]
[1646929341100,1.12776134,2605.1,2604.8,0.96719206]
[1646929341298,1.12776134,2605.1,2604.9,0.00385471]
[1646929341501,2.08817134,2605.1,2604.9,0.00385471]
[1646929342104,2.08817134,2605.1,2604.8,0.96719206]
[1646929342507,2.08817134,2605.1,2604.9,0.0037275]
[1646929343306,2.08817134,2605.1,2604.8,0.96719206]
[1646929343709,3.03489117,2605.1,2604.9,0.0037275]
[1646929344111,2.08817134,2605.1,2604.9,0.0037275]
[1646929344510,2.08817134,2605.1,2604.8,0.96719206]
[1646929344955,2.08817134,2605.1,2604.9,0.0037275]
[1646929345759,2.08817134,2605.1,2604.8,0.96719206]
[1646929346157,2.08817134,2605.1,2604.9,0.00357354]
[1646929347158,2.08817134,2605.1,2604.8,0.96719206]
[1646929347358,2.08817134,2605.1,2604.9,0.00357354]
[1646929347658,2.08817134,2605.1,2604.9,0.00274665]
[1646929348057,1.12776134,2605.1,2604.9,0.00274665]
[1646929348257,1.12776134,2605.1,2604.8,1.92756206]
[1646929349697,1.12776134,2605.1,2604.8,1.93115914]
[1646929350696,1.12776134,2605.1,2604.8,1.92756206]
[1646929350898,1.12776134,2605.1,2604.8,1.93115914]
[1646929351897,1.12776134,2605.1,2604.8,1.92756206]
[1646929352142,1.12776134,2605.1,2604.8,1.93115914]
[1646929353055,1.12776134,2605.1,2604.8,0.96719206]
[1646929353056,1.90718983,2605.0,2604.8,0.96719206]
[1646929353250,0.04477277,2604.9,2604.8,0.01047563]
[1646929354251,0.04477277,2604.9,2604.8,0.00688206]
[1646929355254,0.96047,2605.0,2604.8,0.00688206]
[1646929356907,0.96047,2605.0,2604.8,0.01047617]
[1646929357308,0.05421489,2604.9,2604.8,0.01047617]
[1646929357810,0.05421489,2604.9,2604.8,0.00688206]
[1646929358214,0.96047,2605.0,2604.8,0.00688206]
[1646929359312,0.96047,2605.0,2604.8,0.01047617]
[1646929360159,0.96047,2605.0,2604.8,0.00688206]
[1646929360556,0.96047,2605.0,2604.8,0.01047609]
[1646929361356,0.96047,2605.0,2604.8,0.00688206]
[1646929361757,0.96047,2605.0,2604.8,0.01047609]
[1646929362558,0.96047,2605.0,2604.8,0.00688206]
[1646929362959,0.96047,2605.0,2604.8,0.01047609]
[1646929363402,1.90718983,2605.0,2604.8,0.01047609]
[1646929363602,0.94671983,2604.9,2604.8,7.609e-05]
[1646929363802,1.93193959,2604.9,2604.7,0.25]
[1646929364004,1.4777372,2604.8,2604.7,0.25]
[1646929364201,1.9387372,2604.8,2604.7,0.25]
[1646929364804,1.1104247,2604.7,2604.5,0.25]
[1646929365003,0.51078535,2604.6,2604.5,0.25]
[1646929365202,0.461,2604.6,2604.5,0.25]
[1646929365603,0.3841,2604.5,2604.2,1.02646201]
[1646929365806,1.79346574,2604.5,2604.2,0.77646201]
[1646929366008,1.40936574,2604.5,2604.2,0.77646201]
[1646929366204,1.18273659,2604.3,2604.2,0.77646201]
[1646929369254,2.97620233,2604.3,2604.1,0.00385514]
[1646929369456,0.96098,2604.2,2604.1,0.00385514]
[1646929369653,1.42198,2604.2,2604.1,0.00385514]
[1646929369853,1.42198,2604.2,2603.6,1.92179]
[1646929369854,0.3841,2604.1,2603.6,1.92179]
[1646929370054,1.023482,2603.8,2603.6,1.92179]
[1646929370654,0.961,2603.8,2603.6,1.92179]
[1646929371302,1.40936574,2604.3,2603.6,1.92329266]
[1646929371605,0.461,2604.3,2603.6,2.17329266]
[1646929371806,0.96077,2604.2,2603.7,0.9608232]
[1646929372006,2.0,2604.5,2603.7,1.9216632]
[1646929372007,1.94836574,2604.5,2603.7,1.9216632]
[1646929372204,5.86576,2604.6,2603.8,0.96067]
[1646929372205,6.81412574,2604.6,2603.8,0.96067]
[1646929372404,2.88276,2604.6,2603.8,0.96067]
[1646929372605,3.83112574,2604.6,2603.8,0.96452987]
[1646929373005,0.9607,2604.4,2603.9,1.92136]
[1646929373208,0.9607,2604.4,2603.9,0.96082]
[1646929373406,1.3448,2604.4,2603.9,0.96082]
[1646929373607,1.17361084,2604.3,2603.9,0.96082]
[1646929373811,3.09539084,2604.3,2604.0,0.00385975]
[1646929374506,0.96089,2604.2,2604.0,0.00385975]
[1646929374749,0.96089,2604.2,2603.9,0.96082]
[1646929374946,0.96089,2604.2,2604.0,0.00385975]
[1646929375756,2.03586459,2604.2,2604.0,0.00385975]
[1646929375958,2.03586459,2604.2,2603.9,1.9216]
[1646929376155,2.03586459,2604.2,2604.0,0.00372951]
[1646929376954,0.96089,2604.2,2604.0,0.00372951]
[1646929377155,0.96089,2604.2,2603.9,1.9216]
[1646929377357,0.96089,2604.2,2604.0,0.00340048]
[1646929377956,0.96089,2604.2,2604.0,0.96412838]
[1646929378157,0.96071,2604.4,2604.1,0.96067]
[1646929378401,0.96071,2604.4,2604.2,0.96068]
[1646929379001,1.0,2604.8,2604.2,0.96068]
[1646929379196,0.96063,2604.7,2604.3,1.21055]
[1646929379398,4.27491,2604.9,2604.4,0.96052]
[1646929379597,0.04947705,2605.0,2604.4,0.96052]
[1646929379997,1.20522867,2604.7,2604.4,0.96175337]
[1646929380396,1.20522867,2604.7,2604.5,0.96052]
[1646929380996,1.20522867,2604.7,2604.5,1.9210399]
[1646929381196,2.86938574,2605.2,2604.6,0.96047]
[1646929381197,0.94836574,2605.2,2604.6,0.96047]
[1646929381399,2.17316574,2605.3,2604.6,2.00574211]
[1646929381603,0.94836574,2605.3,2604.6,2.00574211]
[1646929381997,0.94836574,2605.4,2604.6,2.00574211]
[1646929382242,0.94836574,2605.4,2604.7,0.00359528]
[1646929382442,0.90695285,2604.9,2604.8,0.96036]
[1646929383045,0.96036,2605.3,2604.8,2.88112]
[1646929384048,1.92218311,2605.3,2604.9,0.96038]
[1646929384252,1.92218311,2605.3,2605.1,1.92065]
[1646929386911,0.81036,2605.3,2605.1,1.92065]
[1646929387111,1.90945574,2605.5,2605.1,1.92065]
[1646929387307,0.96109,2605.5,2605.1,1.92065]
[1646929387506,1.0008,2605.5,2605.1,1.92065]
[1646929387912,0.0008,2605.5,2605.1,1.92065]
[1646929388313,0.87575458,2605.5,2605.1,2.8809347]
[1646929388513,0.0008,2605.5,2605.2,0.96023]
[1646929388717,0.0008,2605.5,2605.2,2.88054]
[1646929388914,0.0008,2605.5,2605.3,0.06750457]
[1646929389661,0.0008,2605.5,2605.3,1.98784587]
[1646929389859,0.0008,2605.5,2605.4,0.0826418]
[1646929392168,0.0008,2605.5,2605.3,0.9601013]
[1646929393061,1.19531209,2605.6,2605.3,0.9601013]
[1646929393262,1.19531209,2605.6,2605.3,2.8804813]
[1646929393502,1.19531209,2605.6,2605.3,3.1304813]
[1646929393902,1.19169867,2605.6,2605.3,3.1304813]
[1646929394103,1.19530299,2605.6,2605.3,3.1304813]
[1646929395203,1.19169867,2605.6,2605.3,3.1304813]
[1646929395402,0.00360432,2605.6,2605.3,3.1304813]
[1646929395602,0.00360432,2605.6,2605.4,0.9601314]
[1646929396204,0.94836574,2606.1,2605.5,0.08226584]
[1646929396404,1.0416525,2606.0,2605.5,1.04231584]
[1646929396604,0.0036043,2605.6,2605.5,1.04231584]
[1646929396803,0.0036043,2605.6,2605.5,2.96236524]
[1646929397006,1.00546285,2605.6,2605.5,2.8800994]
[1646929397251,1.00546285,2605.6,2605.5,0.96005]
[1646929397454,1.00185855,2605.6,2605.5,0.96005]
[1646929398156,1.00185855,2605.6,2605.5,0.95365906]
[1646929399856,1.00185855,2605.6,2605.3,2.17038]
[1646929400060,0.96035,2605.5,2605.3,2.17038]
[1646929400905,0.96035,2605.5,2605.3,0.25]
[1646929401702,3.5,2605.4,2605.3,0.25]
[1646929401904,0.05237164,2605.4,2605.3,0.25]
[1646929402906,1.00073738,2605.4,2605.3,0.25]
[1646929403104,4.90936574,2605.4,2605.3,0.25]
[1646929403304,0.96067,2605.2,2604.7,0.25340257]
[1646929403505,2.00034607,2605.1,2604.7,0.25340257]
[1646929403704,5.28903088,2605.0,2604.7,0.25340257]
[1646929403904,6.28903088,2605.0,2604.7,0.00340257]
[1646929404655,1.32803088,2604.9,2604.3,1.92115]
[1646929404856,1.1556275,2604.7,2604.3,1.92115]
[1646929405056,1.1556275,2604.7,2604.4,0.96069]
[1646929405057,2.5004375,2604.7,2604.4,0.96069]
[1646929406257,2.5004375,2604.7,2604.4,0.96424009]
[1646929406460,2.5004375,2604.7,2604.1,0.25]
[1646929406461,20.5,2604.3,2602.9,3.85625855]
[1646929406761,20.5,2604.3,2602.4,5.64517562]
[1646929406762,0.01240999,2603.7,2602.3,0.25]
[1646929407062,0.01240999,2603.7,2602.0,7.33]
[1646929407063,0.3841,2603.3,2602.4,1.56477484]
[1646929407260,0.92440753,2603.2,2602.0,7.33]
[1646929407460,3.5,2603.4,2601.9,0.25]
[1646929407461,0.92440753,2603.1,2602.1,1.5432208]
[1646929407658,0.92440753,2603.1,2602.2,1.5432208]
[1646929407659,1.06863566,2602.4,2602.2,1.5432208]
[1646929407963,2.88418,2602.9,2602.4,0.62334659]
[1646929408158,0.07930958,2602.8,2602.4,0.62334659]
[1646929409000,1.14913503,2602.6,2602.5,0.96124]
[1646929409601,1.14913503,2602.6,2602.4,0.62334659]
[1646929409799,1.14913503,2602.6,2602.4,0.62710556]
[1646929409800,0.0793203,2602.5,2602.4,0.62710556]
[1646929409999,0.54032089,2602.5,2602.4,0.62710556]
[1646929410200,0.461,2602.5,2602.4,0.62710556]
[1646929410400,1.54032231,2602.5,2602.4,0.62710556]
[1646929410799,1.54032231,2602.5,2602.4,0.62334659]
[1646929411199,2.42249,2602.5,2602.4,0.62334659]
[1646929411400,0.192,2603.0,2602.4,0.62334659]
[1646929411603,0.07931631,2602.9,2602.4,0.62334659]
[1646929411800,0.07931631,2602.8,2602.4,0.62334659]
[1646929412000,0.07931631,2603.1,2602.4,0.62334659]
[1646929412249,0.461,2603.2,2602.4,0.62334659]
[1646929412250,0.07931683,2603.0,2602.4,0.62334659]
[1646929412447,0.9612,2602.7,2602.6,0.00373861]
[1646929413049,0.9612,2602.7,2602.4,0.5770852]
[1646929413253,2.06000404,2602.7,2602.4,0.5770852]
[1646929413453,0.0657533,2602.6,2602.5,0.00373863]
[1646929413652,1.9884433,2602.6,2602.5,0.00373863]
[1646929414254,1.9884433,2602.6,2602.4,0.5770852]
[1646929414456,1.0,2602.9,2602.4,0.5770852]
[1646929414457,1.03999859,2602.5,2602.4,0.5770852]
[1646929414656,0.07874859,2602.5,2602.4,0.5770852]
[1646929414855,0.08136843,2602.8,2602.4,0.5770852]
[1646929415454,6.38399,2603.1,2602.4,0.5770852]
[1646929415455,1.0,2602.9,2602.4,0.4270852]
[1646929415654,0.06654005,2602.8,2602.4,0.4270852]
[1646929415913,0.06654005,2602.8,2602.5,0.0012069]
[1646929416104,1.11192588,2602.7,2602.5,0.0012069]
[1646929416303,0.07251848,2602.6,2602.5,0.0012069]
[1646929416505,1.03374848,2602.6,2602.5,0.0012069]
[1646929416803,0.07102572,2602.5,2602.4,0.4270852]
[1646929417004,0.07102572,2602.5,2602.4,0.43067166]
[1646929418010,0.07102572,2602.5,2602.4,0.4270852]
[1646929419851,1.0,2602.9,2602.4,0.4270852]
[1646929419852,1.02517953,2602.9,2602.4,0.4270852]
[1646929420049,1.02517953,2602.9,2602.5,0.96112]
[1646929420249,0.08073768,2602.9,2602.5,1.34522]
[1646929420452,0.07925159,2603.4,2602.5,1.34522]
[1646929420651,0.07613058,2603.8,2602.6,0.192]
[1646929421448,0.07613058,2603.8,2602.8,1.92172]
[1646929421449,0.07584878,2603.5,2602.8,1.92172]
[1646929421650,1.0538257,2603.3,2602.8,1.92172]
[1646929421850,1.05732057,2603.3,2602.8,2.11372]
[1646929422050,0.08264061,2603.2,2602.8,2.11372]
[1646929422250,0.08264061,2603.2,2602.7,0.9609]
[1646929422450,0.08264061,2603.2,2602.8,0.96096]
[1646929422451,0.97206026,2602.9,2602.8,0.96096]
[1646929422652,1.05557404,2602.9,2602.7,0.9609]
[1646929422852,0.07664251,2603.5,2602.7,0.9609]
[1646929423050,0.00372526,2603.1,2602.7,0.9609]
[1646929423509,0.96483526,2603.1,2602.6,1.92226]
[1646929423713,0.07106384,2602.9,2602.6,1.92226]
[1646929423906,0.07291606,2602.8,2602.6,1.92226]
[1646929425308,0.07291606,2602.8,2602.5,0.00372607]
[1646929425507,0.07291606,2602.8,2602.5,0.00384403]
[1646929426314,0.07291606,2602.8,2602.4,0.4270852]
[1646929426511,0.06629431,2602.6,2602.4,0.4270852]
[1646929426810,0.06629431,2602.6,2602.5,0.00374438]
[1646929427646,0.06629431,2602.6,2602.4,0.4270852]
[1646929427647,0.52729431,2602.6,2602.4,0.4270852]
[1646929427847,1.0413927,2602.5,2602.4,0.4270852]